Cogmind - Beta 15 @@@ ROGUE MODE // 2025.09.23 @ 14:52:40 Player: glorp Result: Destroyed by P-60 Hacker with Shock Rifle Performance ------------- Evolutions (2) 1000 Regions Visited (4) 800 Robots Destroyed (48) 240 Value Destroyed (2183) 2183 Prototype IDs (1) 20 Alien Tech Used (0) 0 Bonus (202) 202 TOTAL SCORE: 4445 Bonus ------- High Alert Combat Kills 2 Entered Garrisons 200 Cogmind --------- Core Integrity 0/550 Matter 150/300 Energy 100/100 System Corruption 3% Temperature Cool (0) Movement Core (200) Ox3 Location -8/Garrison Parts ------- > --- POWER (1) -------- (None) > --- PROPULSION (4) --- (None) > --- UTILITY (4) ------ Medium Storage Unit Hacking Suite > --- WEAPON (2) ------- (None) > --- INVENTORY (10) --- Light Nuclear Core Aluminum Leg Weight Redist. System Recoil Stabilizer Light Armor Plating Grenade Launcher Peak State ------------ > --- POWER ------------ Light Nuclear Core > --- PROPULSION ------- Carbon-fiber Leg Carbon-fiber Leg > --- UTILITY ---------- Advanced Heat Sink Medium Storage Unit Advanced Weight Redist. System Hacking Suite > --- WEAPON ----------- Heavy Laser > --- INVENTORY -------- Aluminum Leg Weight Redist. System Recoil Stabilizer Light Armor Plating Heavy Assault Rifle Grenade Launcher [Rating: 26] Favorites ----------- Power Light Ion Engine Engine Light Ion Engine Power Core Light Nuclear Core Propulsion Aluminum Leg Leg Aluminum Leg Utility Medium Storage Unit Device Weight Redist. System Storage Medium Storage Unit Hackware Hacking Suite Protection Light Armor Plating Weapon Heavy Assault Rifle Energy Gun Particle Gun Ballistic Gun Heavy Assault Rifle Launcher Grenade Launcher Build | -11 -10 -9 -8 -8 ------- Run | Yrd Mat Mat Mat Gar Slots Evolved 4 | . . 2 2 . Power . | . . . . . Propulsion 2 | . . . 2 . Utility 2 | . . 2 . . Weapon . | . . . . . Parts Attached 54 | 7 6 19 5 17 Power 9 | 1 1 3 . 4 Engine 4 | 1 . 3 . . Core 5 | . 1 . . 4 Reactor . | . . . . . Propulsion 18 | 2 1 8 . 7 Treads . | . . . . . Leg 18 | 2 1 8 . 7 Wheel . | . . . . . Hover . | . . . . . Flight . | . . . . . Utility 13 | 1 4 4 3 1 Device 4 | . . 1 2 1 Storage 4 | 1 3 . . . Processor . | . . . . . Hackware 1 | . . . 1 . Protection 4 | . 1 3 . . Artifact . | . . . . . Weapon 14 | 3 . 4 2 5 Energy Gun 4 | 1 . . 1 2 Energy Cannon . | . . . . . Ballistic Gun 9 | 2 . 4 1 2 Ballistic Cannon . | . . . . . Launcher 1 | . . . . 1 Special Weapon . | . . . . . Impact Weapon . | . . . . . Slashing Weapon . | . . . . . Piercing Weapon . | . . . . . Special Melee Weapon . | . . . . . Unidentified Prototypes 1 | . . . 1 . Corrupted Parts 1 | 1 . . . . System Corruption 1 | 1 . . . . Parts Lost 28 | . . 5 . 23 Power 5 | . . 1 . 4 Propulsion 10 | . . . . 10 Utility 5 | . . 3 . 2 Weapon 8 | . . 1 . 7 Highest Loss Streak 15 | . . 2 . 15 To Critical Strikes . | . . . . . Average Backups 8 | 1 7 9 9 6 Power . | 1 1 . . . Propulsion 2 | . . 3 2 . Utility 2 | . 4 1 2 3 Weapon 3 | . 1 4 4 2 Tool/Special . | . . . . . Unused Backups 3 | . 2 1 . . Power . | . . . . . Propulsion . | . . . . . Utility 3 | . 2 1 . . Weapon . | . . . . . Tool/Special . | . . . . . Average Slot Usage (%) 87 | . 96 88 86 79 Engine 7 | . 7 10 9 . Core 3 | . 7 . . 6 Leg 26 | . 28 22 35 33 Device 7 | . . 10 11 4 Storage 11 | . 14 11 9 9 Hackware 2 | . . . 4 9 Protection 7 | . 10 11 . . Ballistic Gun 20 | . 28 21 17 11 Peak Build Rating 26 | 6 10 13 20 26 Average Rating 12 | 4 8 11 16 18 On Entrance 9 | . 6 9 12 18 Naked Turns . | . . . . . Heaviest Build 47 | 12 47 28 23 23 Greatest Support 50 | 20 20 26 49 50 Greatest Overweight (x) 2 | . 2 1 . . Average Overweight (x) . | . . . . . Largest Inventory Capacity 20 | 8 20 10 10 10 Average Capacity 10 | 6 10 10 10 10 Most Carried 10 | 4 10 10 10 10 Average Carried 8 | 2 8 9 8 6 Final Capacity 10 | 8 10 10 10 10 Final Carried 10 | 3 9 10 9 6 Class Distribution -------------------- 67% | Scavenger-Mutant 32% | Mutant Dominant Class ---------------- Mutant | -10/Materials Scavenger-Mutant | -9/Materials Scavenger-Mutant | -8/Materials Scavenger-Mutant | -8/Garrison Resources | -11 -10 -9 -8 -8 ----------- Run | Yrd Mat Mat Mat Gar Matter Collected 1334 | 206 188 642 . 298 Remotely . | . . . . . Salvage Created 1810 | 77 248 1076 . 409 Parts 107 | 3 13 68 . 23 Haulers Intercepted . | . . . . . Recyclers Shooed 1 | . 1 . . . Parts Field Recycled . | . . . . . Retrieved Matter . | . . . . . Parts Self-Destructed . | . . . . . Prevented . | . . . . . Kills | -11 -10 -9 -8 -8 ------- Run | Yrd Mat Mat Mat Gar Combat Hostiles Destroyed 45 | . 8 26 . 11 Guns 45 | . 8 26 . 11 Classes Destroyed 7 | 1 2 3 . 1 Builder 1 | . . 1 . . Recycler 2 | 1 1 . . . Swarmer 16 | . 6 7 . 3 Grunt 21 | . 2 12 . 7 Brawler 2 | . . 2 . . Sentry 5 | . . 5 . . Behemoth 1 | . . . . 1 Best Kill Streak 5 | 1 3 5 . 2 Combat Bots Only 5 | . 3 5 . 2 Max Kills in Single Turn 1 | 1 1 1 . 1 Gunslinging . | . . . . . Exploded . | . . . . . Melee . | . . . . . Uniques/NPCs Destroyed . | . . . . . Combat | -11 -10 -9 -8 -8 -------- Run | Yrd Mat Mat Mat Gar Hostile Shots Fired 336 | . 48 113 . 175 Missed 87 | . 9 35 . 43 Hits 249 | . 39 78 . 132 Projectile 249 | . 39 78 . 132 Critical Strikes 9 | . 1 2 . 6 Damage Taken 3851 | . 356 929 . 2566 Core 748 | . 26 158 . 564 Absorbed by Shields 9 | . . . . 9 Core Remaining (%) 83 | 100 89 60 . . Volleys Fired 164 | 1 20 73 . 70 Largest 2 | 2 2 2 . 2 Hottest 92 | 60 40 46 . 92 Shots Fired 292 | 2 40 133 . 117 Gun 285 | 2 40 133 . 110 Cannon . | . . . . . Launcher 7 | . . . . 7 Special . | . . . . . Kinetic 267 | 1 40 133 . 93 Thermal 17 | . . . . 17 Explosive 7 | . . . . 7 Electromagnetic 1 | 1 . . . . Robot Hit Streak 11 | 2 6 11 . 9 Robot Miss Streak 4 | . 3 3 . 4 Penetration Max . | . . . . . Secondary Targets 3 | . 2 1 . . Max Gunslinging Chain 1 | . 1 1 . . Shots Hit Robots 192 | 2 24 91 . 75 Core Hits 88 | 1 13 41 . 33 Critical Kills 2 | . . 1 . 1 Critical Parts Destroyed 1 | . . . . 1 Critical Strikes 3 | . . 1 . 2 Destroy 3 | . . 1 . 2 Melee Attacks . | . . . . . Impact . | . . . . . Slashing . | . . . . . Piercing . | . . . . . Sneak Attacks . | . . . . . Combat Hostiles . | . . . . . Follow-up Attacks . | . . . . . Damage Inflicted 3113 | 30 320 1315 . 1448 Guns 2808 | 30 313 1281 . 1184 Cannons . | . . . . . Explosions 234 | . . . . 234 Melee . | . . . . . Ramming 71 | . 7 34 . 30 Kinetic 2547 | 15 313 1281 . 938 Thermal 246 | . . . . 246 Explosive 234 | . . . . 234 Electromagnetic 15 | 15 . . . . Impact . | . . . . . Slashing . | . . . . . Piercing . | . . . . . Highest Corruption 3 | 1 1 1 . 3 Average Corruption 1 | 1 1 1 . 2 Corruption Purged . | . . . . . Corruption Blocked . | . . . . . Effects 14 | 1 5 7 . 1 Message Errors 4 | 1 1 2 . . Matter Fused 4 | . 2 2 . . Heat Flow Errors 1 | . . 1 . . Energy Discharges 1 | . 1 . . . Parts Rejected 1 | . . . . 1 Data Loss (minor) 1 | . . 1 . . Data Loss (major) 1 | . 1 . . . Misfires 1 | . . 1 . . Overload Shots . | . . . . . Overflow Damage . | . . . . . Projectiles . | . . . . . Explosions . | . . . . . Melee . | . . . . . Knockbacks . | . . . . . Impact . | . . . . . Kinetic . | . . . . . Secondary . | . . . . . Self-Inflicted Damage 72 | . . . . 72 Shots 1 | . . . . 1 Rammed 1 | . . . . 1 Targets Rammed 22 | . 1 3 . 18 Kicked 21 | . 1 3 . 17 Crushed . | . . . . . Highest Temperature 227 | . 2 227 . 108 Average Temperature 29 | . 2 26 . 36 Received Heat Transfer 1033 | . 57 390 . 586 Siege Activations . | . . . . . Martial Activations . | . . . . . Shielding Activations . | . . . . . Robots Disrupted . | . . . . . Combat Hostiles . | . . . . . Robots Corrupted . | . . . . . Combat Hostiles . | . . . . . Parts Fried . | . . . . . Impact Corruptions . | . . . . . Robots Melted . | . . . . . Combat Hostiles . | . . . . . Parts Melted . | . . . . . Heat Transferred 481 | . . . . 481 Parts Sabotaged . | . . . . . Parts Stolen . | . . . . . Parts Stripped . | . . . . . Power Chain Reactions . | . . . . . Alert | -11 -10 -9 -8 -8 ------- Run | Yrd Mat Mat Mat Gar Maximum Alert Level 2 | . . . . 2 Low Security (%) 80 | 100 100 100 100 21 Level 1 18 | . . . . 75 Level 2 . | . . . . 2 Level 3 . | . . . . . Level 4 . | . . . . . Level 5 . | . . . . . High Security . | . . . . . Max Security . | . . . . . Peak Influence 404 | 5 91 178 74 404 Initial 74 | . . . 74 15 Average 110 | 1 32 92 53 220 Influence Increases 1517 | 5 211 742 . 559 Destroy 0b10 Robot/C 900 | . 160 520 . 220 Destroy 0b10 Robot/NC 15 | 5 5 5 . . Destroy Leader 180 | . 30 140 . 10 Trap Triggered on 0b10 20 | . . 20 . . Successful Hack 49 | . . 49 . . Anti-Garrison Action 200 | . . . . 200 Destroy Structure 78 | . 1 8 . 69 Lose Combat Pursuer 75 | . 15 . . 60 Influence Decreases 1173 | 5 208 567 154 239 Entered New Map 116 | . . 3 104 9 Time Decay 777 | 5 208 514 50 . Lost Part 280 | . . 50 . 230 Squads Dispatched 6 | . . 6 . . Investigation 4 | . . 4 . . Extermination . | . . . . . Reinforcement 2 | . . 2 . . Assault . | . . . . . Garrison . | . . . . . Intercept . | . . . . . Searches Triggered . | . . . . . Construction Impeded . | . . . . . Haulers Reinforced . | . . . . . Active Scanning Responses . | . . . . . Cargo Convoy Interrupts . | . . . . . Stealth | -11 -10 -9 -8 -8 --------- Run | Yrd Mat Mat Mat Gar Distress Signals 5 | . 3 2 . . Communications Jammed . | . . . . . Distress Signals . | . . . . . Times Spotted 70 | . 14 36 1 19 Peak Tracking Total 5 | . 4 5 1 4 Tactical Retreats 4 | . 1 . . 3 Traps | -11 -10 -9 -8 -8 ------- Run | Yrd Mat Mat Mat Gar Traps Triggered . | . . . . . Indirectly . | . . . . . Trap Hack Attempts . | . . . . . Triggered . | . . . . . Disarmed . | . . . . . Reprogrammed 7 | . . 7 . . Reused 2 | . . 2 . . Traps Extracted . | . . . . . Installed . | . . . . . Triggered 2 | . . 2 . . Machines | -11 -10 -9 -8 -8 ---------- Run | Yrd Mat Mat Mat Gar Machines Disabled 5 | . . . . 5 Max in Single Turn 2 | . . . . 2 Garrison Relay 3 | . . . . 3 Phase Generator 1 | . . . . 1 Machines Repaired . | . . . . . Machines Dismantled . | . . . . . Machines Sabotaged . | . . . . . Overloaded Fab Kills . | . . . . . Hacking | -11 -10 -9 -8 -8 --------- Run | Yrd Mat Mat Mat Gar Machines Accessed 11 | . 1 9 1 . Terminals 10 | . 1 9 . . Fabricators . | . . . . . Repair Stations . | . . . . . Recycling Units . | . . . . . Scanalyzers . | . . . . . Garrison Access 1 | . . . 1 . Total Hacks 35 | . 2 32 1 . Successful 24 | . 2 21 1 . Failed 11 | . . 11 . . Catastrophic . | . . . . . Database Lockouts . | . . . . . Manual 18 | . . 18 . . Terminals 34 | . 2 32 . . Fabricators . | . . . . . Repair Stations . | . . . . . Recycling Units . | . . . . . Scanalyzers . | . . . . . Garrison Access 1 | . . . 1 . Terminal Hacks 15 | . 2 13 . . Record 1 | . 1 . . . Branch Access Points 1 | . . 1 . . Emergency Access Points 1 | . . 1 . . Terminal Index 1 | . . 1 . . Garrison Index 1 | . . 1 . . Alert Level 2 | . 1 1 . . Locate Traps 3 | . . 3 . . Reprogram Traps 2 | . . 2 . . Registered Prototypes 1 | . . 1 . . Zone Layout 2 | . . 2 . . Fabricator Hacks . | . . . . . Repair Station Hacks . | . . . . . Recycling Unit Hacks . | . . . . . Scanalyzer . | . . . . . Garrison Access Hacks 1 | . . . 1 . Unlock Access 1 | . . . 1 . Unauthorized Hacks 8 | . . 8 . . Terminals 8 | . . 8 . . Botnet 8 | . . 8 . . Fabricators . | . . . . . Repair Stations . | . . . . . Recycling Units . | . . . . . Scanalyzers . | . . . . . Garrison Access . | . . . . . Data Cores Recovered . | . . . . . Used . | . . . . . Hacking Detections 8 | . . 8 . . Full Trace Events 5 | . . 5 . . Feedback Events 1 | . . 1 . . Corruption 1 | . . 1 . . Feedback Blocked . | . . . . . Robot Schematics Acquired . | . . . . . Robots Built . | . . . . . Authchips . | . . . . . Time . | . . . . . Total Robot Build Rating . | . . . . . Part Schematics Acquired . | . . . . . Parts Built . | . . . . . Authchips . | . . . . . Time . | . . . . . Total Part Build Rating . | . . . . . Parts Repaired . | . . . . . Time . | . . . . . Parts Recycled . | . . . . . Recycled Matter . | . . . . . Retrieved Matter . | . . . . . Retrieved Components . | . . . . . Parts Scanalyzed . | . . . . . Part Schematics Acquired . | . . . . . Parts Damaged . | . . . . . Bothacking | -11 -10 -9 -8 -8 ------------ Run | Yrd Mat Mat Mat Gar Used RIF Installer . | . . . . . Robots Hacked . | . . . . . Non-combat . | . . . . . Combat . | . . . . . Robot Hacks Applied . | . . . . . Relay Couplers Released 12 | . . . . 12 Machine Destruction 12 | . . . . 12 Fabnet Peak Effective % . | . . . . . Robots Rewired . | . . . . . Allies Hacked . | . . . . . Hacks Repelled . | . . . . . Allies | -11 -10 -9 -8 -8 -------- Run | Yrd Mat Mat Mat Gar Total Allies . | . . . . . Largest Group . | . . . . . Highest-Rated Group . | . . . . . Highest-Rated Ally . | . . . . . Total Orders . | . . . . . Ally Attacks . | . . . . . Total Damage . | . . . . . Kills . | . . . . . Allies Corrupted . | . . . . . Allies Melted . | . . . . . Intel | -11 -10 -9 -8 -8 ------- Run | Yrd Mat Mat Mat Gar Active Infowar (turns) . | . . . . . Robot Analysis Total . | . . . . . Derelict Logs Recovered . | . . . . . Drone Launches . | . . . . . Drone Recoveries . | . . . . . Exploration | -11 -10 -9 -8 -8 ------------- Run | Yrd Mat Mat Mat Gar Turns Passed 3025 | 59 513 1615 101 737 Spaces Moved 1280 | 39 269 586 65 321 Core 5 | 5 . . . . Treads . | . . . . . Legs 1275 | 34 269 586 65 321 Wheels . | . . . . . Hover . | . . . . . Flight . | . . . . . Fastest Speed 50 | 50 120 120 120 120 Average Speed 129 | 111 160 122 120 120 Slowest Speed 260 | 120 260 190 120 120 Overloaded Moves . | . . . . . Propulsion Burnouts . | . . . . . Robots Hopped . | . . . . . Potential Cave-ins . | . . . . . Cave-ins Triggered . | . . . . . Exploration Rate (%) 29 | 4 55 56 5 29 Regions Visited 4 Branch Regions . Pre-discovered Areas . | . . . . . Known Exits Taken 1 | . . . 1 . Unknown Exits Taken 3 | 1 1 1 . . Scrap Searched . | . . . . . Spaces Dug . | . . . . . Terrain Destroyed 101 | . . . . 101 Melee . | . . . . . Projectile . | . . . . . AOE 101 | . . . . 101 Terrain Rammed . | . . . . . Walls Destroyed . | . . . . . Machines Disabled . | . . . . . Actions | -11 -10 -9 -8 -8 --------- Run | Yrd Mat Mat Mat Gar Total 2351 | 50 311 1356 88 546 Wait 789 | . 3 660 12 114 Move 1276 | 38 268 585 64 321 Hop . | . . . . . Pick Up 15 | 3 7 3 1 1 Fast Attach 25 | 6 4 3 3 9 Attach 17 | 1 . 4 4 8 Detach 7 | 1 1 2 2 1 Swap 18 | . 2 12 . 4 Drop 18 | . 5 11 2 . Fire 164 | 1 20 73 . 70 Melee . | . . . . . Ram 1 | . . . . 1 Kick 21 | . 1 3 . 17 Crush . | . . . . . Escape Stasis . | . . . . . Rewire . | . . . . . Trap . | . . . . . Miscellaneous . | . . . . . Route ------- -11/Scrapyard -10/Materials (discovered 2 exits: *Mat / [*Min]) -9/Materials (discovered 3 exits: *Mat x2 / Min) -8/Materials -8/Garrison History --------- Turn | Location | Event 7 | -11/Scrapyard | Discovered new exit (range 16) 60 | -11/Scrapyard | Entered Materials 249 | -10/Materials | Discovered new exit (range 6) 303 | -10/Materials | Build established: Mutant 523 | -10/Materials | Discovered new exit (range 12) 573 | -10/Materials | Entered another Materials area 573 | -9/Materials | Evolved 2 slots: Utility x2 853 | -9/Materials | Identified exit to Mines 1233 | -9/Materials | Build established: Scavenger-Mutant 1322 | -9/Materials | Discovered new exit (range 15) 2163 | -9/Materials | Discovered new exit (range 16) 2188 | -9/Materials | Entered another Materials area 2188 | -8/Materials | Evolved 2 slots: Propulsion x2 2288 | -8/Materials | Identified exit to Garrison 2289 | -8/Materials | Entered Garrison 2309 | -8/Garrison | Triggered checkpoint 2384 | -8/Garrison | Garrison Relay disabled 2396 | -8/Garrison | Garrison Relay disabled 2425 | -8/Garrison | Triggered checkpoint 2466 | -8/Garrison | Garrison Relay disabled 2502 | -8/Garrison | Spotted B-75 Beast 2611 | -8/Garrison | Core integrity fell below 50% 2657 | -8/Garrison | Destroyed B-75 Beast 2687 | -8/Garrison | Lost 15 parts (3p6n2u4w) 2813 | -8/Garrison | Triggered checkpoint 2937 | -8/Garrison | Phase Generator disabled 2963 | -8/Garrison | Core integrity fell below 20% 3026 | -8/Garrison | Destroyed by P-60 Hacker with Shock Rifle Last Messages --------------- 03008_ P-60 Hacker heat spikes uncontrollably. 03009_ Kicked P-60 Hacker out of the way. 03010_ System corrupted: Carbon-fiber Leg rejected. 03011_ Kicked P-60 Hacker. 03012_ Kicked P-60 Hacker out of the way. 03014_ Aluminum Leg destroyed. 03014_ Kicked P-60 Hacker. 03020_ P-60 Hacker heat damages Imp. Heat Sink, Remote Datajack, Gravmag System, Gravmag System. 03020_ Kicked P-60 Hacker. 03021_ P-60 Hacker heat short circuits Imp. Heat Sink. 03021_ Kicked P-60 Hacker. 03023_ Carbon-fiber Leg destroyed. 03024_ Kicked P-60 Hacker. 03025_ P-60 Hacker heat damages Gravmag System. 03025_ Aluminum Leg destroyed. 03025_ Slammed into P-60 Hacker. Map ----- +----------------------------------------------------+ | ?????????????????????????????????????????????????? | | ?????????????????????????????????????????????????? | | ???????????????????????????????????????????####### | | ???????????????????????????????????????????# | | ???????????????????????????????????????????# | | ???????????????????????????????????????????# | | ???????????????????????????????????????????# ### | | ???????????????????????????????????????????# #?? | | ???????????????????????????????????????????# #?? | | ?????????????????????????????????##????????# ### | | ????????????????????????????????? ????????# ! | | ????????????????????????????????# #????#### | | ???????????????????????????????? ????? ### | | ????????????????????????????????# #??????# # # | | ???????????????????????????????? #??????# # | | ????????????????????????????????# #??????# # | | ????????????????????????????????# #???????# | | ?????????????????????#??###??#??# #???????# | | ?????????????????????# ? ? #??# #???????# | | ?????????????????????# !# #! #??# #???????# # | | ??????????????????????# # # #???# #???????# # | | ??????????????????????? /p/ ????# #???????# # | | ????????????????????????#p#?????# #???????# ### | | ????????????????????????# #?????# #???????# #?? | | ??????????????????????### ####### ######### #?? | | ??????????????????????# p@ Y ^ ### | | ??????????????????????# ^ % | | ??????????????????????# ^ | | ??????????????????????# ####### ##### ######## | | ??????????????????????# #??? ???? | | ??????????????????????# #??# # # #?? | | ??????????????????????# #??#### # # #?? | | ??????????????????????# #?????# [ #?? | | ??????????????????????# #?????# #?? | | ??????????????????????# ####### #?? | | ??????????????????????# # #? | | ????????????????????? #######%*# # #? | | ??????????????????? #?????# # ##? | | ????????????????? #?????# #?? | | ????????????????# ## #?????# # ##?? | | ????????????????# ?# #?##### # ##??? | | ??????????????? ?? "?# ##### ###???? | | ?????????????? ?? "?########????####?????? | | ????????????? ??? "??????????????????????? | | ???????????" ??? "??????????????????????? | | ???????????? ## ???## #??????????????????????? | | ???????????? ?#?????# #??????????????????????? | | ??????????????????????? ??????????????????????? | | ??????????????????????? ??????????????????????? | | ??????????????????????? #??????????????????????? | +----------------------------------------------------+ Best States ------------- Heat Dissipation 50 Energy Generation 14 Energy Capacity 265 Matter Stores 300 Matter Capacity 300 Sight Range 16 Terrain Scan Density 10 Additional Mass Support 9 Armor Coverage 450 Evasion (%) 55 Offensive Hacking 10 Item Schematics ----------------- None Robot Schematics ------------------ None Fabricated ------------ Nothing Repaired ---------- Nothing Alien Tech Used ----------------- None Achievements -------------- None Challenges ------------ None Game ------ Seed ConcussiveTeslaLink Manual? 0 Play Time 00:19:13 Cumulative 7.3 hours Start 2025.09.23 @ 14:37:44 End 2025.09.23 @ 14:52:40 Sessions 1 Manual Loads 0 Difficulty Rogue Special Mode None Game No. 20 Rogue 6 Adventurer 14 Explorer 0 Win Type - Total 0 Types 0/0/0/0/0/0/0/0/0/0 Lore% 4 Gallery% 13 Achievement% 19 Wizard Run 0 Options --------- Layout 1 ASCII 0 Keyboard 1 Movement Numpad Keybinds 0 Fullscreen 1 Font 24/Smallcaps Map View 50x35 Zoom Use 0% Tactical HUD 1 Map Filters NONE Filters NONE Steam 0 RUN: 4eb295bd-b6cf-4a77-b56e-8bc2479da9a1